[Event "Early-Titled-Tuesday-Blitz-March-26-2024"]
[Site "Chess.com"]
[Date "2024.03.26"]
[Round "3"]
[White "LLariMarc"]
[Black "Mindhunter08"]
[Result "0-1"]
[WhiteElo "2461"]
[BlackElo "2665"]
[TimeControl "180+1"]
[EndTime "8:27:56 PDT"]
[Termination "Mindhunter08 won by resignation"]

1. d4 {[%clk 0:03:00.9]} 1... d5 {[%clk 0:02:59.1]} 2. Nf3 {[%clk 0:03:01]} 2...
Nf6 {[%clk 0:02:59.3]} 3. Bg5 {[%clk 0:03:01.6]} 3... Ne4 {[%clk 0:02:57.9]} 4.
Nbd2 {[%clk 0:03:01.2]} 4... Nxg5 {[%clk 0:02:51.2]} 5. Nxg5 {[%clk 0:03:02.1]}
5... e5 {[%clk 0:02:51.8]} 6. Ngf3 {[%clk 0:02:59.8]} 6... e4 {[%clk 0:02:41.9]}
7. Ng1 {[%clk 0:02:48.9]} 7... c5 {[%clk 0:02:32.1]} 8. dxc5 {[%clk 0:02:32.7]}
8... Bxc5 {[%clk 0:02:31.5]} 9. e3 {[%clk 0:02:33.2]} 9... O-O {[%clk
0:02:13.1]} 10. c3 {[%clk 0:02:32]} 10... Nc6 {[%clk 0:02:06.8]} 11. Nb3 {[%clk
0:02:32.1]} 11... Bb6 {[%clk 0:02:03.1]} 12. Ne2 {[%clk 0:02:31.3]} 12... Be6
{[%clk 0:01:57.5]} 13. Ned4 {[%clk 0:02:31.4]} 13... Qf6 {[%clk 0:01:53.6]} 14.
Be2 {[%clk 0:02:30]} 14... Ne5 {[%clk 0:01:51.1]} 15. Qd2 {[%clk 0:02:24.3]}
15... a5 {[%clk 0:01:40.7]} 16. a4 {[%clk 0:02:22]} 16... Qg6 {[%clk 0:01:31.4]}
17. g3 {[%clk 0:02:21.1]} 17... Bh3 {[%clk 0:01:22.4]} 18. O-O-O {[%clk
0:02:20.1]} 18... Rfd8 {[%clk 0:01:17.7]} 19. Nb5 {[%clk 0:02:19.5]} 19... Rac8
{[%clk 0:01:14.8]} 20. N3d4 {[%clk 0:02:18.3]} 20... Bg4 {[%clk 0:01:03.5]} 21.
Bxg4 {[%clk 0:02:17.8]} 21... Qxg4 {[%clk 0:01:04.4]} 22. Kb1 {[%clk 0:02:13.3]}
22... Rc4 {[%clk 0:00:51.2]} 23. b3 {[%clk 0:02:12.8]} 23... Rcc8 {[%clk
0:00:51.9]} 24. h3 {[%clk 0:02:09.3]} 24... Qg6 {[%clk 0:00:51.7]} 25. g4 {[%clk
0:02:08.6]} 25... Qf6 {[%clk 0:00:46.4]} 26. Rhg1 {[%clk 0:02:05.8]} 26... Nd7
{[%clk 0:00:41.7]} 27. g5 {[%clk 0:02:00.9]} 27... Qe7 {[%clk 0:00:40]} 28. Nf5
{[%clk 0:01:53.6]} 28... Qf8 {[%clk 0:00:37.3]} 29. Qxd5 {[%clk 0:01:48.9]}
29... Nc5 {[%clk 0:00:33.2]} 30. Qe5 {[%clk 0:01:35.4]} 30... Nd3 {[%clk
0:00:26.2]} 31. Qxe4 {[%clk 0:01:27.1]} 31... Nxf2 {[%clk 0:00:26]} 32. Qc2
{[%clk 0:01:19.7]} 32... Nxd1 {[%clk 0:00:24]} 33. Rxd1 {[%clk 0:01:14.1]} 33...
Rxd1+ {[%clk 0:00:23.2]} 34. Qxd1 {[%clk 0:01:15]} 34... Rd8 {[%clk 0:00:23.7]}
35. Nfd4 {[%clk 0:01:14.4]} 35... Qe7 {[%clk 0:00:22]} 36. Qg1 {[%clk
0:01:14.4]} 36... Qe4+ {[%clk 0:00:22.1]} 37. Kb2 {[%clk 0:01:14]} 37... Re8
{[%clk 0:00:20]} 38. Nd6 {[%clk 0:01:02.8]} 38... Qxe3 {[%clk 0:00:19.5]} 39.
Qxe3 {[%clk 0:01:03.5]} 39... Rxe3 {[%clk 0:00:20.4]} 40. Nxb7 {[%clk 0:01:04]}
40... Rxh3 {[%clk 0:00:19.8]} 41. Nc6 {[%clk 0:01:04.2]} 41... Rg3 {[%clk
0:00:14.4]} 42. Nbxa5 {[%clk 0:01:03.7]} 42... Rxg5 {[%clk 0:00:13.6]} 43. b4
{[%clk 0:01:04]} 43... h5 {[%clk 0:00:13.5]} 44. Nc4 {[%clk 0:01:04.2]} 44...
Bg1 {[%clk 0:00:13.1]} 45. Nd4 {[%clk 0:00:55.4]} 45... Bxd4 {[%clk 0:00:10.6]}
46. cxd4 {[%clk 0:00:55.8]} 46... h4 {[%clk 0:00:11.5]} 47. Nd2 {[%clk
0:00:55.1]} 47... Rg2 {[%clk 0:00:10.5]} 48. Kc3 {[%clk 0:00:54.6]} 48... h3
{[%clk 0:00:10.1]} 49. Nf3 {[%clk 0:00:54.1]} 49... Rg3 {[%clk 0:00:10.6]} 50.
Kc4 {[%clk 0:00:52.9]} 50... Rxf3 {[%clk 0:00:10.5]} 0-1

[Event "Early-Titled-Tuesday-Blitz-March-26-2024"]
[Site "Chess.com"]
[Date "2024.03.26"]
[Round "3"]
[White "ljuks68"]
[Black "vladgoncharov"]
[Result "1-0"]
[WhiteElo "2436"]
[BlackElo "2604"]
[TimeControl "180+1"]
[EndTime "8:27:56 PDT"]
[Termination "ljuks68 won on time"]

1. e4 {[%clk 0:03:00.9]} 1... e6 {[%clk 0:02:59]} 2. d4 {[%clk 0:03:00.5]} 2...
d5 {[%clk 0:02:59.1]} 3. Nc3 {[%clk 0:03:01.1]} 3... Nf6 {[%clk 0:02:58.3]} 4.
Bg5 {[%clk 0:03:01.3]} 4... Be7 {[%clk 0:02:56.4]} 5. e5 {[%clk 0:03:01.4]} 5...
Nfd7 {[%clk 0:02:56.3]} 6. h4 {[%clk 0:03:02]} 6... a6 {[%clk 0:02:53.2]} 7. Qg4
{[%clk 0:03:01.3]} 7... f5 {[%clk 0:02:34.8]} 8. Qh5+ {[%clk 0:02:56.4]} 8... g6
{[%clk 0:02:34.4]} 9. Bxe7 {[%clk 0:02:56.6]} 9... Qxe7 {[%clk 0:02:34]} 10. Qh6
{[%clk 0:02:51.9]} 10... c5 {[%clk 0:02:26.9]} 11. dxc5 {[%clk 0:02:21.9]} 11...
Nxe5 {[%clk 0:02:21.5]} 12. Be2 {[%clk 0:02:12.3]} 12... Qxc5 {[%clk 0:02:13.1]}
13. Qg7 {[%clk 0:02:09.1]} 13... Nf7 {[%clk 0:02:12.8]} 14. h5 {[%clk
0:02:02.9]} 14... g5 {[%clk 0:01:39.1]} 15. Nf3 {[%clk 0:01:14.1]} 15... h6
{[%clk 0:01:09.8]} 16. O-O-O {[%clk 0:00:44.8]} 16... Nc6 {[%clk 0:00:58.8]} 17.
Rhe1 {[%clk 0:00:14.1]} 17... Qf8 {[%clk 0:00:48.3]} 18. Qf6 {[%clk 0:00:14.4]}
18... Qe7 {[%clk 0:00:40]} 19. Qg7 {[%clk 0:00:14.6]} 19... Bd7 {[%clk
0:00:25.4]} 20. Nxd5 {[%clk 0:00:10.3]} 20... exd5 {[%clk 0:00:24.4]} 21. Bd3
{[%clk 0:00:10.1]} 21... Rc8 {[%clk 0:00:11.8]} 22. Rxe7+ {[%clk 0:00:09.6]}
22... Nxe7 {[%clk 0:00:12.1]} 23. Ne5 {[%clk 0:00:08.8]} 23... Rf8 {[%clk
0:00:10.9]} 24. Ng6 {[%clk 0:00:07.9]} 24... Rg8 {[%clk 0:00:06.8]} 25. Qf6
{[%clk 0:00:08]} 25... Nxg6 {[%clk 0:00:03.8]} 26. hxg6 {[%clk 0:00:08.4]} 1-0

[Event "Early-Titled-Tuesday-Blitz-March-26-2024"]
[Site "Chess.com"]
[Date "2024.03.26"]
[Round "3"]
[White "jefferyx"]
[Black "Veleamater"]
[Result "1-0"]
[WhiteElo "3099"]
[BlackElo "2412"]
[TimeControl "180+1"]
[EndTime "8:27:58 PDT"]
[Termination "jefferyx won by resignation"]

1. e4 {[%clk 0:03:00.9]} 1... d6 {[%clk 0:03:00]} 2. d4 {[%clk 0:03:00.7]} 2...
g6 {[%clk 0:03:00.1]} 3. Nf3 {[%clk 0:02:59.9]} 3... Bg7 {[%clk 0:03:00]} 4. Be3
{[%clk 0:03:00.6]} 4... Nf6 {[%clk 0:02:59.8]} 5. Nc3 {[%clk 0:03:01.3]} 5...
Nc6 {[%clk 0:02:59.8]} 6. Qd2 {[%clk 0:03:01.3]} 6... a6 {[%clk 0:02:57.5]} 7.
Bh6 {[%clk 0:03:00.8]} 7... O-O {[%clk 0:02:55.3]} 8. h3 {[%clk 0:02:44.1]} 8...
b5 {[%clk 0:02:34.2]} 9. Bd3 {[%clk 0:02:44.2]} 9... e5 {[%clk 0:02:33.8]} 10.
d5 {[%clk 0:02:41]} 10... Ne7 {[%clk 0:02:33.4]} 11. a4 {[%clk 0:02:40.3]} 11...
b4 {[%clk 0:02:32.9]} 12. Na2 {[%clk 0:02:40.6]} 12... a5 {[%clk 0:02:32.8]} 13.
c3 {[%clk 0:02:40.9]} 13... bxc3 {[%clk 0:02:24.9]} 14. Nxc3 {[%clk 0:02:41.8]}
14... Bb7 {[%clk 0:02:21]} 15. O-O {[%clk 0:02:37.5]} 15... c6 {[%clk
0:02:13.7]} 16. dxc6 {[%clk 0:02:38.4]} 16... Bxc6 {[%clk 0:02:13.5]} 17. Rfd1
{[%clk 0:02:30.7]} 17... Rb8 {[%clk 0:02:06]} 18. Bxg7 {[%clk 0:02:21.9]} 18...
Kxg7 {[%clk 0:02:05.4]} 19. Rac1 {[%clk 0:02:16.3]} 19... Qb6 {[%clk 0:02:04.2]}
20. Bb5 {[%clk 0:02:11.5]} 20... Bxe4 {[%clk 0:01:59.2]} 21. Qxd6 {[%clk
0:02:10.1]} 21... Qxd6 {[%clk 0:01:58.4]} 22. Rxd6 {[%clk 0:02:09.1]} 22... Bxf3
{[%clk 0:01:58.4]} 23. gxf3 {[%clk 0:02:09.7]} 23... Nf5 {[%clk 0:01:57.6]} 24.
Ra6 {[%clk 0:02:07.6]} 24... Nd4 {[%clk 0:01:54.1]} 25. Kg2 {[%clk 0:02:07.3]}
25... Rfc8 {[%clk 0:01:50.8]} 26. Re1 {[%clk 0:02:02.7]} 26... Rc5 {[%clk
0:01:46.2]} 27. Rxa5 {[%clk 0:01:59.5]} 27... Nh5 {[%clk 0:01:41.4]} 28. Ra7
{[%clk 0:01:56.8]} 28... Nf4+ {[%clk 0:01:40.8]} 29. Kh1 {[%clk 0:01:50]} 29...
Nxf3 {[%clk 0:01:40]} 30. Rd1 {[%clk 0:01:49.8]} 30... Nxh3 {[%clk 0:01:34.7]}
31. Kg2 {[%clk 0:01:49.6]} 31... Nhg5 {[%clk 0:01:34.3]} 32. Rdd7 {[%clk
0:01:46.2]} 32... h5 {[%clk 0:01:28.3]} 33. Rac7 {[%clk 0:01:27.6]} 33... Rxc7
{[%clk 0:01:22.4]} 34. Rxc7 {[%clk 0:01:28.5]} 34... h4 {[%clk 0:01:21]} 35. a5
{[%clk 0:01:28.9]} 35... h3+ {[%clk 0:01:21.3]} 36. Kh1 {[%clk 0:01:29.1]} 36...
Nd4 {[%clk 0:01:15.8]} 37. Rc5 {[%clk 0:01:24]} 37... Ngf3 {[%clk 0:01:11.1]}
38. a6 {[%clk 0:01:24.1]} 38... Ra8 {[%clk 0:01:10]} 39. Bc4 {[%clk 0:01:17]}
39... Ne6 {[%clk 0:00:51.4]} 40. Bxe6 {[%clk 0:01:07.2]} 40... fxe6 {[%clk
0:00:48.5]} 41. Rc7+ {[%clk 0:01:07.8]} 41... Kf6 {[%clk 0:00:47.6]} 42. a7
{[%clk 0:01:08.7]} 42... e4 {[%clk 0:00:37.1]} 43. b4 {[%clk 0:01:03.7]} 43...
Ke5 {[%clk 0:00:32.4]} 44. b5 {[%clk 0:01:04.1]} 44... e3 {[%clk 0:00:14.6]} 45.
fxe3 {[%clk 0:01:04.1]} 45... Kf5 {[%clk 0:00:13]} 46. b6 {[%clk 0:01:04.1]}
46... Kg4 {[%clk 0:00:13.1]} 47. Rc4+ {[%clk 0:00:58.2]} 47... Kg3 {[%clk
0:00:12.4]} 48. b7 {[%clk 0:00:57.7]} 48... Rxa7 {[%clk 0:00:12.1]} 49. b8=Q+
{[%clk 0:00:58.3]} 49... e5 {[%clk 0:00:11.3]} 50. Qxa7 {[%clk 0:00:57.6]} 50...
g5 {[%clk 0:00:09.3]} 51. Ne4+ {[%clk 0:00:53.3]} 1-0

[Event "Early-Titled-Tuesday-Blitz-March-26-2024"]
[Site "Chess.com"]
[Date "2024.03.26"]
[Round "3"]
[White "CFalcons8"]
[Black "ritanovikova"]
[Result "1-0"]
[WhiteElo "2404"]
[BlackElo "2110"]
[TimeControl "180+1"]
[EndTime "8:27:58 PDT"]
[Termination "CFalcons8 won by resignation"]

1. d4 {[%clk 0:02:59.5]} 1... d5 {[%clk 0:02:55]} 2. c4 {[%clk 0:02:59.8]} 2...
e6 {[%clk 0:02:54.9]} 3. Nf3 {[%clk 0:03:00.2]} 3... Nf6 {[%clk 0:02:55.3]} 4.
g3 {[%clk 0:03:01]} 4... a6 {[%clk 0:02:52.8]} 5. cxd5 {[%clk 0:02:59.4]} 5...
exd5 {[%clk 0:02:52.3]} 6. Bg2 {[%clk 0:02:59.9]} 6... Be7 {[%clk 0:02:46]} 7.
O-O {[%clk 0:03:00.6]} 7... O-O {[%clk 0:02:46.4]} 8. Nc3 {[%clk 0:03:01.4]}
8... c6 {[%clk 0:02:26.2]} 9. Bf4 {[%clk 0:03:00]} 9... Bd6 {[%clk 0:02:26]} 10.
Ne5 {[%clk 0:02:58.8]} 10... Nh5 {[%clk 0:02:18.8]} 11. e4 {[%clk 0:02:48.4]}
11... Nxf4 {[%clk 0:02:17.2]} 12. gxf4 {[%clk 0:02:49.3]} 12... dxe4 {[%clk
0:02:08.5]} 13. Nxe4 {[%clk 0:02:50.2]} 13... Be7 {[%clk 0:02:01.7]} 14. Ng3
{[%clk 0:02:25.7]} 14... Nd7 {[%clk 0:01:59.7]} 15. d5 {[%clk 0:02:24.9]} 15...
cxd5 {[%clk 0:01:56.3]} 16. Bxd5 {[%clk 0:02:21.6]} 16... Nf6 {[%clk 0:01:53]}
17. Bb3 {[%clk 0:02:14.9]} 17... Qxd1 {[%clk 0:01:41.8]} 18. Rfxd1 {[%clk
0:02:15.8]} 18... Bg4 {[%clk 0:01:37.4]} 19. Rd3 {[%clk 0:02:09.7]} 19... Be6
{[%clk 0:01:34]} 20. f5 {[%clk 0:02:03.4]} 20... Bxb3 {[%clk 0:01:29.3]} 21.
Rxb3 {[%clk 0:02:04.3]} 21... Rab8 {[%clk 0:01:23.9]} 22. Rc1 {[%clk 0:01:59.6]}
22... Bd6 {[%clk 0:01:21.8]} 23. Nc4 {[%clk 0:01:58.8]} 23... Bf4 {[%clk
0:01:21.2]} 24. Rd1 {[%clk 0:01:53]} 24... h5 {[%clk 0:01:20.1]} 25. Ne2 {[%clk
0:01:51.7]} 25... Bc7 {[%clk 0:01:16.1]} 26. Ne3 {[%clk 0:01:49.5]} 26... b5
{[%clk 0:01:12.8]} 27. Rc3 {[%clk 0:01:48.7]} 27... Bb6 {[%clk 0:01:12.3]} 28.
Nf4 {[%clk 0:01:42]} 28... Ng4 {[%clk 0:01:01.9]} 29. Nxg4 {[%clk 0:01:39.7]}
29... hxg4 {[%clk 0:01:02.8]} 30. Rg3 {[%clk 0:01:36.8]} 30... Rfd8 {[%clk
0:00:56.1]} 31. Rxd8+ {[%clk 0:01:35.8]} 31... Bxd8 {[%clk 0:00:53.8]} 32. Rxg4
{[%clk 0:01:36.7]} 32... Bf6 {[%clk 0:00:53.8]} 33. Nd5 {[%clk 0:01:36.4]} 33...
Bxb2 {[%clk 0:00:51.3]} 34. f6 {[%clk 0:01:36.7]} 34... Rd8 {[%clk 0:00:43.5]}
35. Rxg7+ {[%clk 0:01:27.8]} 35... Kf8 {[%clk 0:00:43.6]} 36. Rg5 {[%clk
0:01:28.7]} 36... Rd6 {[%clk 0:00:39.4]} 37. Rf5 {[%clk 0:01:23.4]} 37... a5
{[%clk 0:00:33]} 38. h4 {[%clk 0:01:20.8]} 38... b4 {[%clk 0:00:29.3]} 39. h5
{[%clk 0:01:18.8]} 39... Bc1 {[%clk 0:00:29.3]} 40. Kf1 {[%clk 0:01:17]} 40...
a4 {[%clk 0:00:28.7]} 41. Nxb4 {[%clk 0:01:16.5]} 41... a3 {[%clk 0:00:27.7]}
42. Rc5 {[%clk 0:01:05.9]} 42... Rxf6 {[%clk 0:00:15.2]} 43. Rxc1 {[%clk
0:01:05.3]} 43... Rh6 {[%clk 0:00:14.6]} 44. Rc5 {[%clk 0:01:04.9]} 44... Ke7
{[%clk 0:00:12.1]} 45. Ra5 {[%clk 0:01:04.3]} 45... Ke6 {[%clk 0:00:10.7]} 46.
Ra6+ {[%clk 0:01:04]} 1-0

[Event "Early-Titled-Tuesday-Blitz-March-26-2024"]
[Site "Chess.com"]
[Date "2024.03.26"]
[Round "3"]
[White "ilushka"]
[Black "Kirill_Klukin"]
[Result "0-1"]
[WhiteElo "2510"]
[BlackElo "2847"]
[TimeControl "180+1"]
[EndTime "8:28:01 PDT"]
[Termination "Kirill_Klukin won by resignation"]

1. Nf3 {[%clk 0:03:00.9]} 1... c5 {[%clk 0:02:59.1]} 2. b3 {[%clk 0:03:00.8]}
2... Nf6 {[%clk 0:02:57.6]} 3. Bb2 {[%clk 0:03:01.2]} 3... e6 {[%clk 0:02:58.2]}
4. c4 {[%clk 0:03:01.6]} 4... b6 {[%clk 0:02:54.3]} 5. g3 {[%clk 0:03:01.8]}
5... Bb7 {[%clk 0:02:54.5]} 6. Bg2 {[%clk 0:03:02.4]} 6... Be7 {[%clk
0:02:49.1]} 7. O-O {[%clk 0:03:02.5]} 7... O-O {[%clk 0:02:49.8]} 8. d4 {[%clk
0:03:02.4]} 8... d6 {[%clk 0:02:47.4]} 9. Nc3 {[%clk 0:03:01.6]} 9... Nbd7
{[%clk 0:02:47.3]} 10. Qd2 {[%clk 0:02:54.1]} 10... Ne4 {[%clk 0:02:40.3]} 11.
Nxe4 {[%clk 0:02:53.3]} 11... Bxe4 {[%clk 0:02:41.2]} 12. Rfd1 {[%clk 0:02:47]}
12... Qc7 {[%clk 0:02:39.9]} 13. d5 {[%clk 0:02:36.5]} 13... exd5 {[%clk
0:02:34.9]} 14. cxd5 {[%clk 0:02:24.8]} 14... Bf6 {[%clk 0:02:34.6]} 15. Ne1
{[%clk 0:02:01.4]} 15... Rfe8 {[%clk 0:02:28.8]} 16. Bxe4 {[%clk 0:01:54.4]}
16... Rxe4 {[%clk 0:02:28.7]} 17. f3 {[%clk 0:01:53.7]} 17... Ree8 {[%clk
0:02:28.9]} 18. e4 {[%clk 0:01:52.6]} 18... Rac8 {[%clk 0:02:28.8]} 19. Rac1
{[%clk 0:01:51]} 19... b5 {[%clk 0:02:27.2]} 20. Ng2 {[%clk 0:01:43.8]} 20...
Qb6 {[%clk 0:02:23.3]} 21. Ne3 {[%clk 0:01:33.1]} 21... Bxb2 {[%clk 0:02:19.3]}
22. Qxb2 {[%clk 0:01:32.5]} 22... Ne5 {[%clk 0:02:20.2]} 23. Kg2 {[%clk
0:01:27.2]} 23... g6 {[%clk 0:01:55.6]} 24. f4 {[%clk 0:00:50.4]} 24... Nd7
{[%clk 0:01:53.3]} 25. Ng4 {[%clk 0:00:47.4]} 25... f6 {[%clk 0:00:57.1]} 26.
Nxf6+ {[%clk 0:00:39.5]} 26... Nxf6 {[%clk 0:00:57.2]} 27. Qxf6 {[%clk
0:00:39.9]} 27... Rxe4 {[%clk 0:00:57.1]} 28. Re1 {[%clk 0:00:39.7]} 28... Rce8
{[%clk 0:00:48.2]} 29. Rxe4 {[%clk 0:00:39.6]} 29... Rxe4 {[%clk 0:00:49.1]} 30.
f5 {[%clk 0:00:35]} 30... Qa5 {[%clk 0:00:33.7]} 31. Rf1 {[%clk 0:00:32]} 31...
Qd2+ {[%clk 0:00:30.3]} 32. Kh1 {[%clk 0:00:09.1]} 32... Qxd5 {[%clk 0:00:26.4]}
33. fxg6 {[%clk 0:00:04.7]} 33... Rf4+ {[%clk 0:00:21]} 34. Kg1 {[%clk 0:00:02]}
34... Rxf6 {[%clk 0:00:20.6]} 0-1

[Event "Early-Titled-Tuesday-Blitz-March-26-2024"]
[Site "Chess.com"]
[Date "2024.03.26"]
[Round "3"]
[White "Tol_Tol"]
[Black "Kostya0705"]
[Result "0-1"]
[WhiteElo "2342"]
[BlackElo "2573"]
[TimeControl "180+1"]
[EndTime "8:28:01 PDT"]
[Termination "Kostya0705 won by resignation"]

1. d4 {[%clk 0:02:58.6]} 1... Nf6 {[%clk 0:02:57.8]} 2. c4 {[%clk 0:02:47]} 2...
e6 {[%clk 0:02:57.5]} 3. Nc3 {[%clk 0:02:46.3]} 3... Bb4 {[%clk 0:02:44.1]} 4.
e3 {[%clk 0:02:44.9]} 4... O-O {[%clk 0:02:40]} 5. Bd3 {[%clk 0:02:45.1]} 5...
b6 {[%clk 0:02:37.6]} 6. Nf3 {[%clk 0:02:44.6]} 6... Bb7 {[%clk 0:02:37.8]} 7.
Kf1 {[%clk 0:02:44.9]} 7... d5 {[%clk 0:02:35.8]} 8. cxd5 {[%clk 0:02:44.2]}
8... exd5 {[%clk 0:02:36.7]} 9. Bd2 {[%clk 0:02:43.3]} 9... a6 {[%clk
0:02:35.5]} 10. Ne5 {[%clk 0:02:41.6]} 10... Bd6 {[%clk 0:02:35.3]} 11. f4
{[%clk 0:02:40.1]} 11... Nbd7 {[%clk 0:02:34.5]} 12. h3 {[%clk 0:02:39.2]} 12...
c5 {[%clk 0:02:33.9]} 13. Be1 {[%clk 0:02:32.1]} 13... Ne4 {[%clk 0:02:28.9]}
14. Nxe4 {[%clk 0:02:09.6]} 14... dxe4 {[%clk 0:02:27.2]} 15. Bc4 {[%clk
0:02:09.9]} 15... cxd4 {[%clk 0:02:23.5]} 16. Qxd4 {[%clk 0:01:49.7]} 16... Bxe5
{[%clk 0:02:00.9]} 17. fxe5 {[%clk 0:01:48.2]} 17... Qe7 {[%clk 0:02:00.1]} 18.
Bg3 {[%clk 0:01:41.1]} 18... Rad8 {[%clk 0:01:47.4]} 19. Qc3 {[%clk 0:01:39.5]}
19... b5 {[%clk 0:01:40.1]} 20. Bb3 {[%clk 0:01:36.4]} 20... Nc5 {[%clk
0:01:40]} 21. Rc1 {[%clk 0:01:29.5]} 21... Nxb3 {[%clk 0:01:03.3]} 22. axb3
{[%clk 0:01:13.1]} 22... f6 {[%clk 0:00:58.7]} 23. exf6 {[%clk 0:01:05.8]} 23...
Rxf6+ {[%clk 0:00:57.2]} 24. Kg1 {[%clk 0:01:06.1]} 24... Rc6 {[%clk 0:00:29.7]}
25. Qe1 {[%clk 0:00:58.9]} 25... Rd3 {[%clk 0:00:28.5]} 26. Rxc6 {[%clk
0:00:54.4]} 26... Bxc6 {[%clk 0:00:29.4]} 27. Kh2 {[%clk 0:00:54.8]} 27... h5
{[%clk 0:00:29.5]} 28. Rf1 {[%clk 0:00:37.4]} 28... Rxb3 {[%clk 0:00:25.9]} 29.
Rf5 {[%clk 0:00:33.8]} 29... Rxb2 {[%clk 0:00:20.6]} 30. Rxh5 {[%clk 0:00:29.8]}
30... a5 {[%clk 0:00:15.7]} 31. Be5 {[%clk 0:00:27.2]} 31... Rc2 {[%clk
0:00:10.7]} 32. Rg5 {[%clk 0:00:24.5]} 32... Qxg5 {[%clk 0:00:10.1]} 33. Qf1
{[%clk 0:00:20.2]} 33... Qxe5+ {[%clk 0:00:09.2]} 0-1

[Event "Early-Titled-Tuesday-Blitz-March-26-2024"]
[Site "Chess.com"]
[Date "2024.03.26"]
[Round "3"]
[White "1800_strength"]
[Black "AccioChess"]
[Result "0-1"]
[WhiteElo "2796"]
[BlackElo "2527"]
[TimeControl "180+1"]
[EndTime "8:28:02 PDT"]
[Termination "AccioChess won by resignation"]

1. g4 {[%clk 0:03:00.9]} 1... d5 {[%clk 0:02:43.4]} 2. Bg2 {[%clk 0:03:00.9]}
2... c5 {[%clk 0:02:42.4]} 3. g5 {[%clk 0:03:00.6]} 3... e5 {[%clk 0:02:41.7]}
4. d3 {[%clk 0:03:00.3]} 4... Nc6 {[%clk 0:02:39.8]} 5. h4 {[%clk 0:03:00.4]}
5... Nge7 {[%clk 0:02:34.8]} 6. Nc3 {[%clk 0:03:00.7]} 6... Be6 {[%clk
0:02:29.7]} 7. e4 {[%clk 0:02:53.7]} 7... d4 {[%clk 0:02:28]} 8. Nce2 {[%clk
0:02:54.3]} 8... Qd7 {[%clk 0:02:20.3]} 9. f4 {[%clk 0:02:53.9]} 9... exf4
{[%clk 0:02:19.6]} 10. Nxf4 {[%clk 0:02:54.8]} 10... Ng6 {[%clk 0:02:17.1]} 11.
Nxe6 {[%clk 0:01:59.4]} 11... fxe6 {[%clk 0:02:16.6]} 12. Bd2 {[%clk 0:01:57.7]}
12... Bd6 {[%clk 0:02:15.8]} 13. Qg4 {[%clk 0:01:23.7]} 13... O-O {[%clk
0:02:09.8]} 14. O-O-O {[%clk 0:01:22.5]} 14... Rf2 {[%clk 0:02:05.6]} 15. e5
{[%clk 0:01:06.5]} 15... Ngxe5 {[%clk 0:01:23.7]} 16. Qe4 {[%clk 0:01:05.2]}
16... Raf8 {[%clk 0:01:09.8]} 17. Nh3 {[%clk 0:01:05.7]} 17... R2f5 {[%clk
0:01:08.9]} 18. Kb1 {[%clk 0:00:55.1]} 18... c4 {[%clk 0:00:55.5]} 19. dxc4
{[%clk 0:00:44]} 19... Nxc4 {[%clk 0:00:56.4]} 20. Bc1 {[%clk 0:00:44.5]} 20...
Re5 {[%clk 0:00:38.4]} 21. Qd3 {[%clk 0:00:42.9]} 21... Ne3 {[%clk 0:00:37.9]}
22. Bxe3 {[%clk 0:00:35.2]} 22... Rxe3 {[%clk 0:00:34.4]} 23. Bxc6 {[%clk
0:00:30.4]} 23... Qxc6 {[%clk 0:00:32.3]} 24. Qxd4 {[%clk 0:00:31]} 24... Bc5
{[%clk 0:00:27.2]} 25. Qg4 {[%clk 0:00:27.5]} 25... Re4 {[%clk 0:00:16.8]} 26.
Qh5 {[%clk 0:00:21.7]} 26... g6 {[%clk 0:00:13.6]} 27. Qh6 {[%clk 0:00:21]}
27... Re8 {[%clk 0:00:11.7]} 28. Rhf1 {[%clk 0:00:19.5]} 28... Bf8 {[%clk
0:00:11.3]} 29. Rxf8+ {[%clk 0:00:19.5]} 29... Rxf8 {[%clk 0:00:12.2]} 30. h5
{[%clk 0:00:19.9]} 30... e5 {[%clk 0:00:12]} 31. Nf2 {[%clk 0:00:11.8]} 31...
Rh4 {[%clk 0:00:11.7]} 32. hxg6 {[%clk 0:00:02.9]} 32... Rxh6 {[%clk 0:00:10.6]}
0-1